[Event "*** SCC Grand Prix: Titled Tuesday Blitz"]
[Site "Chess.com"]
[Date "2020.06.02"]
[Round "7"]
[White "gahryman"]
[Black "Twiceblessed"]
[Result "1-0"]
[WhiteElo "2690"]
[BlackElo "2521"]
[TimeControl "180+1"]
[EndTime "11:20:29 PDT"]
[Termination "gahryman won by resignation"]

1. e4 {[%clk 0:03:00.9]} 1... e5 {[%clk 0:02:59.7]} 2. Nf3 {[%clk 0:02:59.3]}
2... Nc6 {[%clk 0:03:00.2]} 3. Bc4 {[%clk 0:02:59.6]} 3... Bc5 {[%clk
0:02:59.9]} 4. d3 {[%clk 0:02:59.9]} 4... Nf6 {[%clk 0:03:00.3]} 5. O-O {[%clk
0:03:00.8]} 5... O-O {[%clk 0:02:59.8]} 6. c3 {[%clk 0:02:59.8]} 6... d5 {[%clk
0:02:55.8]} 7. exd5 {[%clk 0:02:59.1]} 7... Nxd5 {[%clk 0:02:56.7]} 8. h3 {[%clk
0:02:56.8]} 8... Nb6 {[%clk 0:02:53.7]} 9. Bb5 {[%clk 0:02:56.2]} 9... Bd6
{[%clk 0:02:53.4]} 10. Re1 {[%clk 0:02:51.9]} 10... Re8 {[%clk 0:02:48.4]} 11.
d4 {[%clk 0:02:46.1]} 11... exd4 {[%clk 0:02:45.9]} 12. Rxe8+ {[%clk 0:02:42.2]}
12... Qxe8 {[%clk 0:02:46.8]} 13. cxd4 {[%clk 0:02:42.9]} 13... a6 {[%clk
0:02:46.4]} 14. Bf1 {[%clk 0:02:37.3]} 14... Bf5 {[%clk 0:02:35]} 15. Nc3 {[%clk
0:02:37]} 15... Nb4 {[%clk 0:02:34]} 16. a3 {[%clk 0:02:33]} 16... N4d5 {[%clk
0:02:25.9]} 17. Bd3 {[%clk 0:02:32.6]} 17... Bxd3 {[%clk 0:02:23.7]} 18. Qxd3
{[%clk 0:02:32.3]} 18... h6 {[%clk 0:02:21.9]} 19. Bd2 {[%clk 0:02:31.8]} 19...
Nxc3 {[%clk 0:02:20.7]} 20. bxc3 {[%clk 0:01:58.9]} 20... Qb5 {[%clk 0:02:20.3]}
21. Qe4 {[%clk 0:01:52.6]} 21... Qd5 {[%clk 0:02:08.9]} 22. Qg4 {[%clk
0:01:52.3]} 22... h5 {[%clk 0:02:02.4]} 23. Qh4 {[%clk 0:01:48.9]} 23... Re8
{[%clk 0:02:00]} 24. Bf4 {[%clk 0:01:37.1]} 24... Re4 {[%clk 0:01:57.6]} 25.
Qd8+ {[%clk 0:01:36.3]} 25... Bf8 {[%clk 0:01:53.8]} 26. Qxc7 {[%clk 0:01:32.9]}
26... Nc4 {[%clk 0:01:40.2]} 27. Qb8 {[%clk 0:01:19.8]} 27... Re2 {[%clk
0:01:30.5]} 28. a4 {[%clk 0:01:09.6]} 28... Nb2 {[%clk 0:01:15.9]} 29. Rb1
{[%clk 0:00:55.7]} 29... Qe4 {[%clk 0:01:11.9]} 30. Rf1 {[%clk 0:00:55]} 30...
Qd5 {[%clk 0:01:03.5]} 31. a5 {[%clk 0:00:54.6]} 31... Nc4 {[%clk 0:00:58]} 32.
Bc7 {[%clk 0:00:33.2]} 32... Qc6 {[%clk 0:00:50.1]} 33. Ne5 {[%clk 0:00:28.2]}
33... Nxe5 {[%clk 0:00:49.6]} 34. dxe5 {[%clk 0:00:29.1]} 34... Qxc3 {[%clk
0:00:08.7]} 35. Bd6 {[%clk 0:00:27.3]} 35... Re1 {[%clk 0:00:08]} 36. Qxf8+
{[%clk 0:00:16.4]} 36... Kh7 {[%clk 0:00:08.5]} 37. Rxe1 {[%clk 0:00:16.5]}
37... Qxe1+ {[%clk 0:00:09.4]} 38. Kh2 {[%clk 0:00:17.4]} 38... Qxf2 {[%clk
0:00:10.3]} 39. e6 {[%clk 0:00:17.5]} 39... f5 {[%clk 0:00:08]} 40. e7 {[%clk
0:00:14.3]} 40... f4 {[%clk 0:00:08.2]} 41. Qxf4 {[%clk 0:00:14.2]} 1-0

[Event "*** SCC Grand Prix: Titled Tuesday Blitz"]
[Site "Chess.com"]
[Date "2020.06.02"]
[Round "7"]
[White "Dmitry_M1"]
[Black "H3nriqueTV"]
[Result "1-0"]
[WhiteElo "2387"]
[BlackElo "2190"]
[TimeControl "180+1"]
[EndTime "11:20:34 PDT"]
[Termination "Dmitry_M1 won by resignation"]

1. d4 {[%clk 0:03:00.2]} 1... d5 {[%clk 0:02:58.5]} 2. c4 {[%clk 0:03:00.7]}
2... c6 {[%clk 0:02:58.4]} 3. Nf3 {[%clk 0:02:59.4]} 3... Nf6 {[%clk 0:02:57.7]}
4. Nc3 {[%clk 0:02:59.5]} 4... e6 {[%clk 0:02:49.7]} 5. cxd5 {[%clk 0:02:59.6]}
5... exd5 {[%clk 0:02:49.9]} 6. Bg5 {[%clk 0:02:59.9]} 6... Be7 {[%clk
0:02:50.5]} 7. Qc2 {[%clk 0:03:00.2]} 7... O-O {[%clk 0:02:44.3]} 8. e3 {[%clk
0:03:00.4]} 8... Ne4 {[%clk 0:02:44]} 9. Bf4 {[%clk 0:02:50.8]} 9... f5 {[%clk
0:02:40.3]} 10. Bd3 {[%clk 0:02:45.5]} 10... Nd7 {[%clk 0:02:39.6]} 11. O-O
{[%clk 0:02:33]} 11... Ndf6 {[%clk 0:02:33.6]} 12. Ne5 {[%clk 0:02:21]} 12...
Be6 {[%clk 0:02:19.7]} 13. h3 {[%clk 0:02:09.1]} 13... Rc8 {[%clk 0:02:01.6]}
14. f3 {[%clk 0:02:05.5]} 14... Nxc3 {[%clk 0:02:01.4]} 15. bxc3 {[%clk
0:01:59]} 15... Nd7 {[%clk 0:02:00.8]} 16. Rab1 {[%clk 0:01:51.4]} 16... b6
{[%clk 0:01:52.7]} 17. Ba6 {[%clk 0:01:37.4]} 17... Rc7 {[%clk 0:01:51.2]} 18.
Nd3 {[%clk 0:01:32.1]} 18... b5 {[%clk 0:01:47.4]} 19. Bxc7 {[%clk 0:01:28.7]}
19... Qxc7 {[%clk 0:01:47.5]} 20. a4 {[%clk 0:01:29.4]} 20... bxa4 {[%clk
0:01:37.2]} 21. Qxa4 {[%clk 0:01:26.7]} 21... c5 {[%clk 0:01:12.3]} 22. Rb7
{[%clk 0:01:14.7]} 22... Qd6 {[%clk 0:01:12.6]} 23. Bb5 {[%clk 0:01:11.5]} 23...
Rd8 {[%clk 0:00:56.5]} 24. Qxa7 {[%clk 0:01:01.7]} 24... cxd4 {[%clk 0:00:54.4]}
25. cxd4 {[%clk 0:00:58.1]} 25... Bf8 {[%clk 0:00:43.4]} 26. Rc1 {[%clk
0:00:53.1]} 26... Nf6 {[%clk 0:00:30.7]} 27. Rc6 {[%clk 0:00:32.3]} 27... Qg3
{[%clk 0:00:18.5]} 28. Rxe6 {[%clk 0:00:31.1]} 28... f4 {[%clk 0:00:18.6]} 29.
exf4 {[%clk 0:00:17.6]} 29... Nh5 {[%clk 0:00:16.1]} 30. Rb8 {[%clk 0:00:14.2]}
30... Rxb8 {[%clk 0:00:10.7]} 31. Qd7 {[%clk 0:00:07.5]} 31... Nxf4 {[%clk
0:00:06]} 32. Nxf4 {[%clk 0:00:06.8]} 32... Qxf4 {[%clk 0:00:06.9]} 33. Qxd5
{[%clk 0:00:07.2]} 33... Qc1+ {[%clk 0:00:05.7]} 34. Kh2 {[%clk 0:00:06.8]}
34... Qc7+ {[%clk 0:00:06.3]} 35. g3 {[%clk 0:00:02.9]} 35... Qc2+ {[%clk
0:00:05.9]} 36. Re2+ {[%clk 0:00:02.1]} 1-0

[Event "*** SCC Grand Prix: Titled Tuesday Blitz"]
[Site "Chess.com"]
[Date "2020.06.02"]
[Round "7"]
[White "karinachess1"]
[Black "hectorfiori"]
[Result "1/2-1/2"]
[WhiteElo "2503"]
[BlackElo "2380"]
[TimeControl "180+1"]
[EndTime "11:20:38 PDT"]
[Termination "Game drawn by repetition"]

1. Nf3 {[%clk 0:03:00.9]} 1... c6 {[%clk 0:02:56.8]} 2. c4 {[%clk 0:02:59.7]}
2... Nf6 {[%clk 0:02:54.9]} 3. g3 {[%clk 0:02:59.5]} 3... d5 {[%clk 0:02:55.2]}
4. d4 {[%clk 0:02:57.5]} 4... Bf5 {[%clk 0:02:55]} 5. cxd5 {[%clk 0:02:51.9]}
5... cxd5 {[%clk 0:02:53.9]} 6. Nc3 {[%clk 0:02:44.8]} 6... e6 {[%clk
0:02:46.6]} 7. Qb3 {[%clk 0:02:28]} 7... Qb6 {[%clk 0:02:37.5]} 8. Qxb6 {[%clk
0:02:19.1]} 8... axb6 {[%clk 0:02:38.4]} 9. Bd2 {[%clk 0:02:18.1]} 9... Nc6
{[%clk 0:02:22.4]} 10. Nb5 {[%clk 0:02:12.7]} 10... Rc8 {[%clk 0:02:18.7]} 11.
Rc1 {[%clk 0:02:10.4]} 11... Kd7 {[%clk 0:02:08.3]} 12. h3 {[%clk 0:01:48.8]}
12... h6 {[%clk 0:01:59.2]} 13. e3 {[%clk 0:01:40.3]} 13... Bd6 {[%clk
0:01:54.8]} 14. Be2 {[%clk 0:01:31.4]} 14... Ne4 {[%clk 0:01:46.7]} 15. g4
{[%clk 0:01:14.5]} 15... Bh7 {[%clk 0:01:39]} 16. O-O {[%clk 0:01:13.3]} 16...
f6 {[%clk 0:01:18.4]} 17. a3 {[%clk 0:01:08]} 17... g5 {[%clk 0:01:06.8]} 18. b4
{[%clk 0:00:56]} 18... Ne7 {[%clk 0:00:54.2]} 19. Nxd6 {[%clk 0:00:20.8]} 19...
Nxd6 {[%clk 0:00:47.7]} 20. a4 {[%clk 0:00:21.2]} 20... Ra8 {[%clk 0:00:42.5]}
21. a5 {[%clk 0:00:20.3]} 21... Rhc8 {[%clk 0:00:32.8]} 22. Rxc8 {[%clk
0:00:11.4]} 22... Rxc8 {[%clk 0:00:30]} 23. Rc1 {[%clk 0:00:11.9]} 23... Rxc1+
{[%clk 0:00:26.4]} 24. Bxc1 {[%clk 0:00:12.8]} 24... b5 {[%clk 0:00:26.5]} 25.
Bd2 {[%clk 0:00:11.9]} 25... Nc6 {[%clk 0:00:25.1]} 26. Kf1 {[%clk 0:00:12]}
26... Nc4 {[%clk 0:00:23.6]} 27. Be1 {[%clk 0:00:11.6]} 27... Bc2 {[%clk
0:00:14.7]} 28. h4 {[%clk 0:00:10.8]} 28... Be4 {[%clk 0:00:13]} 29. hxg5 {[%clk
0:00:10.8]} 29... hxg5 {[%clk 0:00:13.9]} 30. Nd2 {[%clk 0:00:11.1]} 30... Bc2
{[%clk 0:00:08.9]} 31. Nf3 {[%clk 0:00:08.7]} 31... Be4 {[%clk 0:00:08.4]} 32.
Ng1 {[%clk 0:00:07.2]} 32... Kd6 {[%clk 0:00:08]} 33. Nf3 {[%clk 0:00:07.3]}
33... Bxf3 {[%clk 0:00:07.6]} 34. Bxf3 {[%clk 0:00:07.4]} 34... e5 {[%clk
0:00:07.9]} 35. Bc3 {[%clk 0:00:06]} 35... e4 {[%clk 0:00:06.9]} 36. Be2 {[%clk
0:00:06.1]} 36... Nb8 {[%clk 0:00:05.5]} 37. Kg2 {[%clk 0:00:05.5]} 37... Na6
{[%clk 0:00:06]} 38. Kg3 {[%clk 0:00:05.4]} 38... Kc6 {[%clk 0:00:05.3]} 39. Bf1
{[%clk 0:00:05.1]} 39... Kd6 {[%clk 0:00:05.4]} 40. Be2 {[%clk 0:00:05]} 40...
Nb8 {[%clk 0:00:05.5]} 41. Bf1 {[%clk 0:00:05.2]} 41... Na6 {[%clk 0:00:06.2]}
42. Be2 {[%clk 0:00:05.4]} 1/2-1/2

[Event "*** SCC Grand Prix: Titled Tuesday Blitz"]
[Site "Chess.com"]
[Date "2020.06.02"]
[Round "7"]
[White "tsvet2005"]
[Black "Zurability"]
[Result "1-0"]
[WhiteElo "2568"]
[BlackElo "2702"]
[TimeControl "180+1"]
[EndTime "11:20:39 PDT"]
[Termination "tsvet2005 won by checkmate"]

1. d4 {[%clk 0:03:00.9]} 1... Nf6 {[%clk 0:02:59.4]} 2. c4 {[%clk 0:03:01.5]}
2... e6 {[%clk 0:02:59]} 3. Nc3 {[%clk 0:03:01.8]} 3... Bb4 {[%clk 0:02:58.9]}
4. f3 {[%clk 0:03:02.1]} 4... c5 {[%clk 0:02:58.2]} 5. d5 {[%clk 0:03:02.3]}
5... b5 {[%clk 0:02:53.8]} 6. e4 {[%clk 0:03:02.3]} 6... O-O {[%clk 0:02:51.5]}
7. Nh3 {[%clk 0:03:02.2]} 7... d6 {[%clk 0:02:31.9]} 8. Nf4 {[%clk 0:03:01.9]}
8... e5 {[%clk 0:02:26.3]} 9. Ne2 {[%clk 0:03:00.3]} 9... bxc4 {[%clk
0:02:20.2]} 10. Ng3 {[%clk 0:03:00.3]} 10... Nbd7 {[%clk 0:02:15.3]} 11. Bxc4
{[%clk 0:02:59.9]} 11... Nb6 {[%clk 0:02:12.9]} 12. Be2 {[%clk 0:03:00.3]} 12...
Ne8 {[%clk 0:01:40.6]} 13. O-O {[%clk 0:02:57.9]} 13... Bxc3 {[%clk 0:01:33]}
14. bxc3 {[%clk 0:02:57.4]} 14... Nc7 {[%clk 0:01:30.1]} 15. f4 {[%clk
0:02:56.3]} 15... f6 {[%clk 0:01:30.3]} 16. fxe5 {[%clk 0:02:52.2]} 16... fxe5
{[%clk 0:01:31.2]} 17. Be3 {[%clk 0:02:45.5]} 17... Bd7 {[%clk 0:01:26.4]} 18.
Qd2 {[%clk 0:02:39.2]} 18... Rb8 {[%clk 0:00:36.2]} 19. Bg5 {[%clk 0:02:37.7]}
19... Qe8 {[%clk 0:00:36.2]} 20. Rxf8+ {[%clk 0:02:34.8]} 20... Qxf8 {[%clk
0:00:37.1]} 21. Rf1 {[%clk 0:02:35.1]} 21... Qe8 {[%clk 0:00:37.2]} 22. Bh5
{[%clk 0:01:36.6]} 22... g6 {[%clk 0:00:29.1]} 23. Be2 {[%clk 0:01:36.5]} 23...
Na4 {[%clk 0:00:25.9]} 24. Bf6 {[%clk 0:01:35.6]} 24... Bb5 {[%clk 0:00:08.9]}
25. Qh6 {[%clk 0:01:32.4]} 25... Qf8 {[%clk 0:00:05.9]} 26. Qh4 {[%clk
0:01:19.6]} 26... Bxe2 {[%clk 0:00:03.7]} 27. Nxe2 {[%clk 0:01:20.5]} 27... Qe8
{[%clk 0:00:03.8]} 28. c4 {[%clk 0:01:07.7]} 28... Qd7 {[%clk 0:00:04]} 29. Ng3
{[%clk 0:01:04.9]} 29... Rf8 {[%clk 0:00:04]} 30. Qh6 {[%clk 0:01:02.8]} 30...
Ne8 {[%clk 0:00:04.2]} 31. Bg5 {[%clk 0:00:39.3]} 31... Rxf1+ {[%clk 0:00:03.7]}
32. Nxf1 {[%clk 0:00:40.2]} 32... Nb6 {[%clk 0:00:03.2]} 33. Ne3 {[%clk
0:00:37.9]} 33... Qf7 {[%clk 0:00:03.4]} 34. Qh4 {[%clk 0:00:35.7]} 34... Qd7
{[%clk 0:00:03.8]} 35. Be7 {[%clk 0:00:33.9]} 35... Qa4 {[%clk 0:00:03.5]} 36.
Qh6 {[%clk 0:00:32.1]} 36... Nd7 {[%clk 0:00:03.7]} 37. Qh3 {[%clk 0:00:23.3]}
37... Kf7 {[%clk 0:00:02.2]} 38. Qe6+ {[%clk 0:00:23.3]} 38... Kg7 {[%clk
0:00:02.4]} 39. Bxd6 {[%clk 0:00:21.6]} 39... Nxd6 {[%clk 0:00:02.3]} 40. Qxd6
{[%clk 0:00:22.5]} 40... Kf7 {[%clk 0:00:02]} 41. Qe6+ {[%clk 0:00:22]} 41...
Kg7 {[%clk 0:00:02.6]} 42. d6 {[%clk 0:00:22.5]} 42... Qc6 {[%clk 0:00:02.3]}
43. Nd5 {[%clk 0:00:22]} 43... Qa4 {[%clk 0:00:02.8]} 44. Ne3 {[%clk 0:00:19.5]}
44... Kh6 {[%clk 0:00:03]} 45. Nf5+ {[%clk 0:00:18.9]} 45... Kg5 {[%clk
0:00:03.1]} 46. Qe7+ {[%clk 0:00:18]} 46... Kf4 {[%clk 0:00:02.3]} 47. Qh4#
{[%clk 0:00:18.3]} 1-0

[Event "*** SCC Grand Prix: Titled Tuesday Blitz"]
[Site "Chess.com"]
[Date "2020.06.02"]
[Round "7"]
[White "Alex_Molchanov"]
[Black "EvgenyRomanov"]
[Result "0-1"]
[WhiteElo "2516"]
[BlackElo "2671"]
[TimeControl "180+1"]
[EndTime "11:20:39 PDT"]
[Termination "EvgenyRomanov won on time"]

1. d4 {[%clk 0:03:00.3]} 1... Nf6 {[%clk 0:02:58.8]} 2. Nf3 {[%clk 0:03:00.4]}
2... e6 {[%clk 0:02:58.8]} 3. g3 {[%clk 0:03:00.5]} 3... d5 {[%clk 0:02:59.5]}
4. Bg2 {[%clk 0:02:59.7]} 4... b5 {[%clk 0:02:59.4]} 5. O-O {[%clk 0:02:59.7]}
5... c5 {[%clk 0:02:59]} 6. c3 {[%clk 0:02:55.4]} 6... Nc6 {[%clk 0:02:52.3]} 7.
Bg5 {[%clk 0:02:38.1]} 7... h6 {[%clk 0:02:37.3]} 8. Bf4 {[%clk 0:02:36.9]} 8...
Be7 {[%clk 0:02:35]} 9. Nbd2 {[%clk 0:02:36.7]} 9... O-O {[%clk 0:02:34.3]} 10.
Ne5 {[%clk 0:02:35.1]} 10... Bb7 {[%clk 0:02:33.2]} 11. Nxc6 {[%clk 0:02:31.7]}
11... Bxc6 {[%clk 0:02:33]} 12. Re1 {[%clk 0:02:24.2]} 12... Qb6 {[%clk
0:02:31.2]} 13. Be3 {[%clk 0:02:21.5]} 13... c4 {[%clk 0:02:21.3]} 14. a3 {[%clk
0:02:14.6]} 14... Ng4 {[%clk 0:02:08]} 15. Nf3 {[%clk 0:02:03.1]} 15... Nxe3
{[%clk 0:02:06.5]} 16. fxe3 {[%clk 0:02:04]} 16... Bd6 {[%clk 0:02:03.2]} 17.
Rf1 {[%clk 0:01:51.5]} 17... a5 {[%clk 0:02:01.9]} 18. Qd2 {[%clk 0:01:50.9]}
18... f6 {[%clk 0:01:54.2]} 19. Nh4 {[%clk 0:01:34.1]} 19... b4 {[%clk
0:01:50.4]} 20. Ng6 {[%clk 0:01:20]} 20... bxc3 {[%clk 0:01:46.7]} 21. bxc3
{[%clk 0:01:19]} 21... Rfb8 {[%clk 0:01:46.3]} 22. Nf4 {[%clk 0:01:11.2]} 22...
Bxf4 {[%clk 0:01:19.8]} 23. exf4 {[%clk 0:01:08.9]} 23... Qb2 {[%clk 0:01:13.9]}
24. Qe3 {[%clk 0:01:06]} 24... Kf7 {[%clk 0:01:13]} 25. Bh3 {[%clk 0:00:32.8]}
25... Bd7 {[%clk 0:01:12.2]} 26. Bg4 {[%clk 0:00:27.8]} 26... Rb3 {[%clk
0:01:07.1]} 27. Rfc1 {[%clk 0:00:24.5]} 27... Rab8 {[%clk 0:01:05.2]} 28. Bh5+
{[%clk 0:00:14.9]} 28... Kg8 {[%clk 0:00:59.6]} 29. Bg4 {[%clk 0:00:14.5]} 29...
R8b6 {[%clk 0:00:57.8]} 30. f5 {[%clk 0:00:13.5]} 30... exf5 {[%clk 0:00:55.9]}
31. Qe7 {[%clk 0:00:12.5]} 31... Rxc3 {[%clk 0:00:37.7]} 32. Rxc3 {[%clk
0:00:03.1]} 32... Qxa1+ {[%clk 0:00:27.3]} 33. Kg2 {[%clk 0:00:03.6]} 33... Qxc3
{[%clk 0:00:27.7]} 34. Bh5 {[%clk 0:00:04.2]} 34... Qc2 {[%clk 0:00:18.9]} 35.
Qd8+ {[%clk 0:00:02.9]} 35... Kh7 {[%clk 0:00:18.1]} 36. Qxb6 {[%clk 0:00:03.8]}
36... f4 {[%clk 0:00:15]} 37. Qc7 {[%clk 0:00:03]} 37... Bf5 {[%clk 0:00:12]}
38. gxf4 {[%clk 0:00:01.5]} 38... Be4+ {[%clk 0:00:12]} 39. Kg3 {[%clk 0:00:02]}
39... Qc3+ {[%clk 0:00:12.1]} 40. Bf3 {[%clk 0:00:02.4]} 40... Qxd4 {[%clk
0:00:12.1]} 41. Qc8 {[%clk 0:00:01.5]} 41... c3 {[%clk 0:00:11.1]} 0-1

[Event "*** SCC Grand Prix: Titled Tuesday Blitz"]
[Site "Chess.com"]
[Date "2020.06.02"]
[Round "7"]
[White "Quaternitychess"]
[Black "zaur-mammadov"]
[Result "1-0"]
[WhiteElo "2813"]
[BlackElo "2596"]
[TimeControl "180+1"]
[EndTime "11:20:40 PDT"]
[Termination "Quaternitychess won on time"]

1. e4 {[%clk 0:03:00.9]} 1... c6 {[%clk 0:02:56.1]} 2. d4 {[%clk 0:03:00.2]}
2... d5 {[%clk 0:02:56.7]} 3. e5 {[%clk 0:03:00.8]} 3... Bf5 {[%clk 0:02:56]} 4.
h4 {[%clk 0:03:01.2]} 4... Qb6 {[%clk 0:02:55.1]} 5. a4 {[%clk 0:02:59.6]} 5...
a5 {[%clk 0:02:52.2]} 6. Nc3 {[%clk 0:02:55.3]} 6... Na6 {[%clk 0:02:51]} 7. g4
{[%clk 0:02:53.9]} 7... Bd7 {[%clk 0:02:50.8]} 8. Ra3 {[%clk 0:02:41]} 8... e6
{[%clk 0:02:45.1]} 9. Rb3 {[%clk 0:02:40.3]} 9... Bb4 {[%clk 0:02:39.4]} 10. Be3
{[%clk 0:02:33.7]} 10... h5 {[%clk 0:02:38.8]} 11. gxh5 {[%clk 0:02:20.3]} 11...
Ne7 {[%clk 0:02:38.1]} 12. Qg4 {[%clk 0:02:20.1]} 12... O-O-O {[%clk 0:02:21.6]}
13. Nf3 {[%clk 0:02:17.9]} 13... c5 {[%clk 0:02:13]} 14. dxc5 {[%clk 0:01:56]}
14... Nxc5 {[%clk 0:01:51.6]} 15. Bd3 {[%clk 0:01:30.7]} 15... Nxd3+ {[%clk
0:01:34.3]} 16. cxd3 {[%clk 0:01:29.7]} 16... Qa6 {[%clk 0:01:35.2]} 17. O-O
{[%clk 0:01:19.4]} 17... Nf5 {[%clk 0:01:34.8]} 18. Rc1 {[%clk 0:01:18.7]} 18...
Kb8 {[%clk 0:01:32.3]} 19. Rxb4 {[%clk 0:00:32.7]} 19... axb4 {[%clk 0:01:31.7]}
20. Qxb4 {[%clk 0:00:33.3]} 20... d4 {[%clk 0:01:11.1]} 21. Nxd4 {[%clk
0:00:30.9]} 21... Nxd4 {[%clk 0:01:11.1]} 22. Bxd4 {[%clk 0:00:30.1]} 22... Bc6
{[%clk 0:01:11.5]} 23. Bc5 {[%clk 0:00:24.6]} 23... Rxh5 {[%clk 0:00:56.8]} 24.
Bd6+ {[%clk 0:00:23.9]} 24... Kc8 {[%clk 0:00:49.6]} 25. Ne4 {[%clk 0:00:23.1]}
25... Rxh4 {[%clk 0:00:42.7]} 26. f3 {[%clk 0:00:17]} 26... Rdh8 {[%clk
0:00:41.6]} 27. Kf2 {[%clk 0:00:16.7]} 27... f5 {[%clk 0:00:22.3]} 28. exf6
{[%clk 0:00:15.2]} 28... gxf6 {[%clk 0:00:22.9]} 29. Bg3 {[%clk 0:00:14.7]}
29... Rh3 {[%clk 0:00:15.7]} 30. Qd6 {[%clk 0:00:11.8]} 30... Qb6+ {[%clk
0:00:14.3]} 31. Ke1 {[%clk 0:00:05.6]} 31... Re8 {[%clk 0:00:08.8]} 32. Rc2
{[%clk 0:00:03.8]} 32... Rh1+ {[%clk 0:00:08.1]} 33. Ke2 {[%clk 0:00:02.9]}
33... f5 {[%clk 0:00:03]} 34. a5 {[%clk 0:00:03.3]} 34... Qxa5 {[%clk
0:00:02.1]} 35. Rxc6+ {[%clk 0:00:02.3]} 35... bxc6 {[%clk 0:00:02.4]} 36. Qxc6+
{[%clk 0:00:02.4]} 36... Kd8 {[%clk 0:00:02.2]} 37. Qd6+ {[%clk 0:00:03.3]}
37... Kc8 {[%clk 0:00:01.9]} 38. Qc6+ {[%clk 0:00:04.2]} 38... Kd8 {[%clk
0:00:02.2]} 39. Qd6+ {[%clk 0:00:04.5]} 39... Kc8 {[%clk 0:00:02.6]} 40. Nc5
{[%clk 0:00:04.9]} 1-0

[Event "*** SCC Grand Prix: Titled Tuesday Blitz"]
[Site "Chess.com"]
[Date "2020.06.02"]
[Round "7"]
[White "CMS13"]
[Black "chessfrendz"]
[Result "1-0"]
[WhiteElo "2243"]
[BlackElo "2391"]
[TimeControl "180+1"]
[EndTime "11:20:40 PDT"]
[Termination "CMS13 won on time"]

1. e4 {[%clk 0:03:00.9]} 1... d6 {[%clk 0:02:30.8]} 2. Nc3 {[%clk 0:03:00.2]}
2... c5 {[%clk 0:02:30.5]} 3. f4 {[%clk 0:02:59]} 3... g6 {[%clk 0:02:30.2]} 4.
Nf3 {[%clk 0:02:58.7]} 4... Bg7 {[%clk 0:02:30.2]} 5. Bb5+ {[%clk 0:02:58.6]}
5... Bd7 {[%clk 0:02:29.6]} 6. Bc4 {[%clk 0:02:58.5]} 6... e6 {[%clk 0:02:28.4]}
7. O-O {[%clk 0:02:57.6]} 7... Ne7 {[%clk 0:02:28.3]} 8. d3 {[%clk 0:02:55.8]}
8... Nbc6 {[%clk 0:02:27.7]} 9. Qe1 {[%clk 0:02:55.8]} 9... Nd4 {[%clk
0:02:27.4]} 10. Nxd4 {[%clk 0:02:53.9]} 10... cxd4 {[%clk 0:02:26.7]} 11. Ne2
{[%clk 0:02:54.1]} 11... a5 {[%clk 0:02:23.7]} 12. a4 {[%clk 0:02:52.7]} 12...
O-O {[%clk 0:02:17.9]} 13. f5 {[%clk 0:02:37.8]} 13... exf5 {[%clk 0:02:16.6]}
14. Bg5 {[%clk 0:02:37.3]} 14... fxe4 {[%clk 0:02:12.4]} 15. Qh4 {[%clk
0:02:29.3]} 15... exd3 {[%clk 0:02:01.7]} 16. Bxe7 {[%clk 0:02:24.3]} 16... dxe2
{[%clk 0:01:59.3]} 17. Bxd8 {[%clk 0:02:22.6]} 17... exf1=Q+ {[%clk 0:01:57.4]}
18. Rxf1 {[%clk 0:02:22.3]} 18... Raxd8 {[%clk 0:01:55.6]} 19. Rxf7 {[%clk
0:02:17.1]} 19... Kh8 {[%clk 0:01:51.3]} 20. Qe7 {[%clk 0:01:52]} 20... Rfe8
{[%clk 0:01:50.3]} 21. Qh4 {[%clk 0:01:24.1]} 21... d3 {[%clk 0:01:48.3]} 22.
Bxd3 {[%clk 0:00:57.5]} 22... Kg8 {[%clk 0:01:21.8]} 23. Rf1 {[%clk 0:00:44.5]}
23... d5 {[%clk 0:01:19.2]} 24. Qf2 {[%clk 0:00:38.9]} 24... Be6 {[%clk
0:01:17.8]} 25. Qb6 {[%clk 0:00:36.3]} 25... Bc8 {[%clk 0:00:50]} 26. Qxa5
{[%clk 0:00:35.6]} 26... Bxb2 {[%clk 0:00:45]} 27. Qb4 {[%clk 0:00:34.6]} 27...
Bg7 {[%clk 0:00:41]} 28. Bb5 {[%clk 0:00:34.2]} 28... Rf8 {[%clk 0:00:40]} 29.
Re1 {[%clk 0:00:30.8]} 29... Rf7 {[%clk 0:00:34.6]} 30. Qd2 {[%clk 0:00:26.7]}
30... Rdf8 {[%clk 0:00:31.8]} 31. h3 {[%clk 0:00:27]} 31... d4 {[%clk
0:00:28.1]} 32. Bc4 {[%clk 0:00:26.3]} 32... Bf5 {[%clk 0:00:20.5]} 33. Bxf7+
{[%clk 0:00:26.3]} 33... Kxf7 {[%clk 0:00:18.9]} 34. Qe2 {[%clk 0:00:25.7]}
34... Bf6 {[%clk 0:00:18.4]} 35. Qc4+ {[%clk 0:00:25.7]} 35... Kg7 {[%clk
0:00:18.5]} 36. Qc7+ {[%clk 0:00:24.7]} 36... Rf7 {[%clk 0:00:18.5]} 37. Qc4
{[%clk 0:00:24]} 37... Rd7 {[%clk 0:00:17.5]} 38. a5 {[%clk 0:00:21.9]} 38... h5
{[%clk 0:00:17]} 39. a6 {[%clk 0:00:21.5]} 39... bxa6 {[%clk 0:00:15.9]} 40.
Qxa6 {[%clk 0:00:22.4]} 40... h4 {[%clk 0:00:02.9]} 41. Rf1 {[%clk 0:00:19.7]}
41... d3 {[%clk 0:00:02.9]} 42. cxd3 {[%clk 0:00:19.3]} 42... Bxd3 {[%clk
0:00:02.6]} 43. Qxf6+ {[%clk 0:00:19]} 43... Kh7 {[%clk 0:00:01.7]} 44. Rf4
{[%clk 0:00:17.5]} 1-0